bitfinex-derivatives/quotes_ETHF0:USTF0_20240907
["timestamp","ask_amount","ask_price","bid_price","bid_amount"]
[1725667446891,0.31398,2230.0,2229.7,4.93561056]
[1725667447100,3.2078,2231.0,2229.8,6.72860604]
[1725667447293,3.6064,2231.0,2230.0,4.93561056]
[1725667447493,3.6064,2231.0,2230.1,2.24347046]
[1725667447694,0.31393,2230.4,2230.0,4.93561056]
[1725667447896,0.31393,2230.4,2230.1,2.24345768]
[1725667448095,1.0098573,2230.7,2230.0,4.93561056]
[1725667448096,0.31393,2230.3,2230.0,4.93561056]
[1725667448347,1.0098573,2230.7,2230.1,2.24354455]
[1725667448506,0.31394,2230.3,2230.0,4.93561056]
[1725667448696,0.31396,2230.2,2230.0,4.93561056]
[1725667448899,0.31396,2230.2,2230.0,3.2078]
[1725667449499,0.78477,2230.5,2230.0,3.2078]
[1725667449500,0.31396,2230.1,2230.0,3.2078]
[1725667450804,0.31396,2230.2,2230.0,3.2078]
[1725667451015,0.3771,2230.4,2230.0,3.2078]
[1725667451194,0.31395,2230.2,2230.0,3.2078]
[1725667451703,0.78456,2231.1,2230.1,4.484]
[1725667451908,3.2078,2231.2,2230.3,3.2078]
[1725667451909,0.31391,2230.5,2230.3,3.2078]
[1725667452303,0.31391,2230.5,2230.4,4.4832]
[1725667452801,0.31391,2230.5,2230.2,1.72781056]
[1725667453008,0.31392,2230.4,2230.1,2.09911056]
[1725667453196,0.31391,2230.5,2230.2,2.24342013]
[1725667453418,0.31392,2230.4,2230.3,3.2078]
[1725667454202,0.31395,2230.2,2230.0,3.2078]
[1725667454698,0.31394,2230.3,2230.0,3.2078]
[1725667456291,0.31394,2230.3,2230.0,4.93561056]
[1725667456496,0.31394,2230.3,2230.0,3.2078]
[1725667457195,0.31395,2230.2,2230.0,3.2078]
[1725667457703,0.31396,2230.2,2230.0,4.93561056]
[1725667457905,0.31396,2230.1,2230.0,3.2078]
[1725667458305,0.31395,2230.2,2230.0,3.2078]
[1725667458746,0.78477,2230.5,2230.0,3.2078]
[1725667459048,0.31395,2230.2,2230.0,3.2078]
[1725667459192,0.31394,2230.3,2230.0,3.2078]
[1725667459399,0.31392,2230.4,2230.0,3.2078]
[1725667459703,0.31392,2230.4,2230.3,3.2078]
[1725667460301,0.31392,2230.4,2230.0,5.24958056]
[1725667460806,0.31392,2230.4,2230.3,3.2078]
[1725667461104,1.0130308,2230.8,2230.0,4.93561056]
[1725667461402,0.31394,2230.3,2230.0,3.2078]
[1725667462604,0.78477,2230.5,2230.0,3.2078]
[1725667462801,0.31394,2230.3,2230.0,3.2078]
[1725667464507,0.31395,2230.2,2230.0,3.2078]
[1725667466403,0.31396,2230.2,2230.0,3.2078]
[1725667468409,0.34824,2230.3,2230.0,3.2078]
[1725667469102,0.0343,2230.3,2230.0,3.2078]
[1725667469504,0.34824,2230.3,2230.0,3.2078]
[1725667470107,0.31395,2230.2,2230.0,3.2078]
[1725667470611,0.34824,2230.3,2230.0,3.2078]
[1725667471015,0.31395,2230.2,2230.0,3.2078]
[1725667475912,0.31396,2230.1,2230.0,3.2078]
[1725667477309,4.79797,2230.1,2229.6,0.69573]
[1725667477505,4.02695,2230.3,2229.6,1.06063]
[1725667477707,0.31397,2230.1,2229.6,1.06063]
[1725667478121,0.31398,2230.0,2229.6,1.06063]
[1725667478415,0.31398,2230.0,2229.6,0.7466]
[1725667478717,3.48801761,2230.3,2229.6,0.7466]
[1725667479016,0.31399,2229.9,2229.6,0.7466]
[1725667479417,0.31398,2230.0,2229.6,0.7466]
[1725667479726,0.31399,2229.9,2229.6,0.7466]
[1725667480613,0.78487,2230.2,2229.6,0.7466]
[1725667480909,0.31399,2229.9,2229.6,0.7466]
[1725667482619,1e-08,2229.9,2229.6,0.3649]
[1725667482919,0.31402,2229.7,2229.6,0.3649]
[1725667483516,0.31402,2229.7,2229.6,2.60895448]
[1725667484111,0.31403,2229.6,2229.5,1.72781056]
[1725667484308,0.31403,2229.6,2229.5,3.97210505]
[1725667484614,0.31403,2229.6,2229.5,2.24429449]
[1725667484812,0.31403,2229.6,2229.5,2.24428961]
[1725667485211,0.31403,2229.6,2229.5,3.97211537]
[1725667487713,0.31403,2229.6,2229.5,2.24430481]
[1725667487912,0.31403,2229.6,2229.5,3.9810913]
[1725667488413,0.31403,2229.6,2229.5,3.98102058]
[1725667488823,0.31403,2229.6,2229.5,2.24430481]
[1725667489422,0.31403,2229.6,2229.4,1.73671577]
[1725667489634,0.31403,2229.6,2229.3,2.11031577]
[1725667489919,0.31404,2229.6,2229.4,3.98120993]
[1725667490120,0.31404,2229.6,2229.4,1.73671577]
[1725667490622,0.31404,2229.6,2229.3,2.11031577]
[1725667490818,1e-08,2229.9,2229.4,2.24445028]
[1725667491126,1e-08,2229.9,2229.8,0.314]
[1725667491313,1e-08,2229.9,2229.8,3.01033905]
[1725667491918,1e-08,2229.9,2229.8,4.74705482]
[1725667492917,1e-08,2229.9,2229.8,3.01033905]
[1725667493723,0.31399001,2229.9,2229.8,3.01033905]
[1725667494625,0.314,2229.8,2229.7,1.73671577]
[1725667494823,0.31402,2229.7,2229.6,1.73671577]
[1725667495029,0.31401,2229.8,2229.6,3.98097831]
[1725667495224,0.31402,2229.7,2229.6,1.73671577]
[1725667495426,1e-08,2229.9,2229.7,0.31402]
[1725667495630,1e-08,2229.9,2229.8,2.24402086]
[1725667496719,1e-08,2229.9,2229.8,3.98008878]
[1725667497427,0.31399001,2229.9,2229.8,3.98008878]
[1725667497839,1e-08,2229.9,2229.8,2.24402086]
[1725667498341,1e-08,2229.9,2229.8,3.98008878]
[1725667499439,0.31399001,2229.9,2229.8,3.98008878]
[1725667500041,0.31399001,2229.9,2229.8,3.98008512]
[1725667500836,1e-08,2229.9,2229.8,8.46488512]
[1725667501036,0.31394,2230.3,2229.8,22.73604738]
[1725667501308,0.31396,2230.1,2230.0,1.73587877]
[1725667501448,0.31396,2230.1,2230.0,4.36899597]
[1725667501845,1.18222,2230.4,2230.0,4.36899597]
[1725667501846,0.31395,2230.2,2230.0,4.36899597]
[1725667502040,0.31395,2230.2,2230.0,2.12497877]
[1725667502240,0.31395,2230.2,2230.1,2.24382771]
[1725667502450,0.31395,2230.2,2230.1,3.97970648]
[1725667502641,0.31394,2230.3,2230.1,3.97970648]
[1725667502943,0.31394,2230.3,2230.1,1.73587877]
[1725667503145,0.71132,2230.4,2230.1,1.73587877]
[1725667503358,0.31393,2230.4,2230.2,2.24370531]
[1725667503637,0.31393,2230.4,2230.1,4.94367877]
[1725667503837,0.31393,2230.4,2230.2,2.24368277]
[1725667504040,0.31392,2230.4,2230.1,4.94367877]
[1725667504553,0.31393,2230.4,2230.1,4.94367877]
[1725667507044,0.31393,2230.4,2230.2,2.24374762]
[1725667507249,0.31393,2230.4,2230.1,4.94367877]
[1725667507443,0.53562466,2230.5,2230.2,2.24367464]
[1725667507635,0.31392,2230.4,2230.1,4.94367877]
[1725667507837,0.31392,2230.4,2230.2,2.24366806]
[1725667508048,0.31392,2230.4,2230.1,4.94367877]
[1725667508305,0.31391,2230.5,2230.2,2.24367924]
[1725667508448,0.31392,2230.4,2230.2,1.73587877]
[1725667508643,0.31392,2230.4,2230.1,4.94367877]
[1725667508846,0.31392,2230.4,2230.2,2.24367277]
[1725667509042,0.31392,2230.4,2230.1,4.94367877]
[1725667509243,0.31392,2230.4,2230.2,2.24368315]
[1725667509547,0.78474,2230.6,2230.1,4.94367877]
[1725667509748,0.31395,2230.3,2230.2,2.24365958]
[1725667510845,0.31395,2230.2,2230.1,4.94367877]
[1725667511049,0.31395,2230.2,2230.1,7.18737145]
[1725667511250,0.31394,2230.3,2230.1,7.18737145]
[1725667511452,0.31394,2230.3,2230.2,2.24369268]
[1725667511754,0.31394,2230.3,2230.2,2.24372214]
[1725667512651,0.31394,2230.3,2230.2,2.24371483]
[1725667513447,0.31395,2230.2,2230.1,4.94367877]
[1725667513647,0.31395,2230.2,2230.1,7.18736152]
[1725667515362,14.00575,2230.2,2229.7,1.73587877]
[1725667515556,0.314,2229.8,2229.6,1.73587877]
[1725667517158,0.31402,2229.7,2229.6,1.73587877]
[1725667517360,0.31402,2229.7,2229.6,3.98014899]
[1725667517550,0.31401,2229.8,2229.6,3.98014899]
[1725667517749,0.31401,2229.8,2229.6,1.73587877]
[1725667519658,0.31402,2229.7,2229.6,1.73587877]
[1725667519858,0.31402,2229.7,2229.6,3.98012912]
[1725667520157,0.2512466,2230.0,2229.6,3.98012912]
[1725667520358,1.18214,2230.1,2229.6,1.73587877]
[1725667520956,0.31402,2229.7,2229.6,1.73587877]
[1725667521163,0.31402,2229.7,2229.6,3.98014115]
[1725667521785,0.31402,2229.7,2229.6,2.24426238]
[1725667523355,0.31403,2229.6,2229.5,2.13717877]
[1725667523555,0.31403,2229.6,2229.5,4.38148883]
[1725667528364,0.31403,2229.6,2229.5,3.98018883]
[1725667528759,1.09912,2229.6,2229.5,2.24431006]
[1725667528962,0.31406,2229.4,2229.3,5.34497877]
[1725667529167,0.31406,2229.4,2229.3,7.58949273]
[1725667529364,0.31406,2229.5,2229.3,7.58949273]
[1725667529568,0.31406,2229.5,2229.3,5.34497877]
[1725667529968,0.31404,2229.6,2229.3,5.34497877]
[1725667530261,0.31404,2229.6,2229.4,3.98039952]
[1725667530472,0.31404,2229.6,2229.5,2.24432278]
[1725667530668,0.31404,2229.6,2229.4,1.73587877]
[1725667531174,7.3178,2230.5,2229.5,11.21787832]
[1725667531371,0.31392,2230.4,2230.1,3.2078]
[1725667531670,0.31391,2230.5,2230.2,4.7721556]
[1725667531872,0.31391,2230.5,2230.3,3.9814556]
[1725667532061,0.31391,2230.5,2230.4,2.24341439]
[1725667532263,0.31392,2230.4,2230.3,1.73736283]
[1725667532468,0.31392,2230.4,2230.3,3.98085796]
[1725667532764,0.76222,2230.4,2230.3,3.98085796]
[1725667533166,0.4483,2230.4,2230.3,3.98085796]
[1725667533369,0.4483,2230.4,2230.3,3.98086326]
[1725667533562,0.4483,2230.4,2230.3,2.24350043]
[1725667534867,0.4483,2230.4,2230.3,3.98086326]
[1725667535264,0.4483,2230.4,2230.3,2.24350043]
[1725667536563,0.4483,2230.4,2230.3,6.72750043]
[1725667536758,0.4483,2230.4,2230.3,9.04398421]
[1725667536965,0.4483,2230.4,2230.3,6.72750043]
[1725667537417,0.4483,2230.4,2230.3,3.97867227]
[1725667537562,0.4483,2230.4,2230.3,8.46267227]
[1725667537772,0.4483,2230.4,2230.3,3.97867227]
[1725667538161,1.8011,2230.4,2230.2,3.10718378]
[1725667538368,1.8011,2230.4,2230.3,3.97833815]
[1725667541175,0.67942302,2230.4,2230.3,7.18613815]
[1725667542077,0.71372302,2230.4,2230.3,7.18613815]
[1725667542576,0.04071508,2230.4,2230.3,7.18613815]
[1725667543281,0.04071508,2230.4,2230.3,7.18610353]
[1725667543808,0.04071508,2230.4,2230.3,3.97830353]
[1725667544174,0.04071508,2230.4,2230.3,11.67010353]
[1725667544369,1.6534,2230.8,2230.7,0.31388]
[1725667544572,3.99187,2232.5,2230.7,13.64786389]
[1725667544782,0.54294099,2232.4,2232.1,3.2078]
[1725667545083,0.3925,2232.6,2232.1,3.52147]
[1725667545373,0.31359,2232.8,2232.4,3.2078]
[1725667545572,0.31362,2232.6,2232.4,3.2078]
[1725667545879,0.3136,2232.7,2232.4,3.2078]
[1725667546082,0.1058,2232.5,2232.4,3.2078]
[1725667546379,0.33143541,2232.5,2231.8,4.94172093]
[1725667546673,0.31369,2232.1,2231.8,3.2078]
[1725667546878,1.5419,2232.4,2231.8,3.2078]
[1725667546879,0.3137,2232.0,2231.8,3.2078]
[1725667547674,1.0923,2231.9,2231.8,3.2078]
[1725667548077,5.7842,2231.9,2231.8,3.2078]
[1725667549369,5.7842,2231.9,2231.0,0.7684]
[1725667549370,14.992,2231.9,2231.0,3.2078]
[1725667549574,0.31379,2231.3,2231.0,3.2078]
[1725667549781,0.31378,2231.4,2231.0,3.2078]
[1725667550671,0.31379,2231.3,2231.0,3.2078]
[1725667550977,0.3901,2231.6,2231.0,3.52162]
[1725667551167,1.3034,2231.9,2231.3,3.2078]
[1725667551572,1.61711,2231.9,2231.3,3.52159]
[1725667551872,0.31372,2231.8,2231.3,3.2078]
[1725667552278,1.3034,2231.9,2231.3,3.52159]
[1725667552574,1.61712,2231.9,2231.3,3.52159]
[1725667552933,0.31372,2231.8,2231.3,3.52159]
[1725667553083,0.31372,2231.8,2231.3,3.2078]
[1725667553277,0.31374,2231.7,2231.3,3.2078]
[1725667553474,1.3034,2231.9,2231.6,3.2078]
[1725667553981,1.3034,2231.9,2231.6,3.52154]
[1725667554475,1.3034,2231.9,2231.7,0.31373]
[1725667554878,1.3034,2231.9,2231.6,3.52154]
[1725667555474,1.3034,2231.9,2231.7,0.31374]
[1725667556480,1.3034,2231.9,2231.6,3.52154]
[1725667557180,1.3034,2231.9,2231.7,0.31373]
[1725667557776,1.3034,2231.9,2231.6,3.52154]
[1725667557982,1.3034,2231.9,2231.7,0.31373]
[1725667558780,1.3034,2231.9,2231.8,3.2078]
[1725667560485,0.7844,2231.6,2231.0,3.2078]
[1725667560685,0.78435,2231.7,2231.0,3.2078]
[1725667560881,0.31379,2231.4,2231.0,3.2078]
[1725667561285,0.31379,2231.3,2231.0,3.2078]
[1725667561477,0.31374,2231.7,2231.0,3.2078]
[1725667561788,0.31374,2231.7,2231.3,3.52158]
[1725667562485,0.3789,2231.8,2231.3,3.2078]
[1725667562687,0.31374,2231.7,2231.3,3.52158]
[1725667563000,0.31374,2231.7,2230.8,1.17814]
[1725667563001,1.3034,2231.9,2231.6,3.2078]
[1725667563176,1.3034,2231.9,2231.6,3.52154]
[1725667563378,1.61711,2231.9,2231.6,3.2078]
[1725667563575,1.3034,2231.9,2231.6,3.2078]
[1725667563779,1.3034,2231.9,2231.7,0.20873]
[1725667563980,1.3034,2231.9,2231.6,3.52154]
[1725667564594,1.3034,2231.9,2231.6,3.2078]
[1725667564779,1.3034,2231.9,2231.7,0.31373]
[1725667568782,1.3034,2231.9,2231.3,3.2078]
[1725667568783,0.31377,2231.5,2231.3,3.2078]
[1725667568989,0.68853,2231.8,2231.4,0.31378]
[1725667569179,0.68853,2231.8,2231.6,3.2078]
[1725667569580,0.31374,2231.7,2231.6,3.2078]
[1725667570187,0.3748,2231.8,2231.6,3.2078]
[1725667570188,0.31373,2231.8,2231.6,3.2078]
[1725667570813,0.31374,2231.7,2231.6,3.2078]
[1725667571055,0.31374,2231.7,2231.4,0.31377]
[1725667571197,0.31374,2231.7,2231.6,3.2078]
[1725667573191,1.25284,2231.7,2231.4,0.31378]
[1725667573501,0.9391,2231.7,2231.6,3.2078]
[1725667573691,1.25284,2231.7,2231.6,3.2078]
[1725667574454,0.31375,2231.6,2231.3,3.52158]
[1725667575794,0.9391,2231.7,2230.7,3.52167]
[1725667575795,0.31384,2231.0,2230.7,3.52167]
[1725667575989,0.2105,2230.9,2230.7,3.52167]
[1725667576191,0.2105,2230.9,2230.7,8.00407]
[1725667576403,0.2105,2230.9,2230.8,4.4824]
[1725667576691,0.2105,2230.9,2230.8,4.79626]
[1725667577491,0.2105,2230.9,2230.8,10.79626]
[1725667577693,0.2105,2230.9,2230.8,11.19186]
[1725667578092,0.31381,2231.2,2230.9,0.31384]
[1725667578293,0.31381,2231.2,2231.1,3.2078]
[1725667581795,0.3138,2231.3,2231.1,3.2078]
[1725667582096,0.31379,2231.4,2231.1,3.52162]
[1725667582291,1.1925,2231.2,2231.1,3.52162]
[1725667582492,0.07134481,2231.2,2231.1,9.14775435]
[1725667582689,0.07134481,2231.2,2231.1,9.52615435]
[1725667583288,0.07134481,2231.2,2231.1,10.62388474]
[1725667583496,0.07134481,2231.2,2231.1,11.7760607]
[1725667583710,0.07134481,2231.2,2231.1,10.62388474]
[1725667584599,0.07134481,2231.2,2231.1,12.35780567]
[1725667584995,0.07134481,2231.2,2231.1,10.62388474]
[1725667585301,0.07134481,2231.2,2231.1,12.35780567]
[1725667585899,0.07134481,2231.2,2231.1,10.62400452]
[1725667586087,0.07134481,2231.2,2231.1,9.93178452]
[1725667586292,0.38515481,2231.2,2231.1,4.3614584]
[1725667586603,0.07134481,2231.2,2231.1,3.2078]
[1725667586811,0.07134481,2231.2,2231.1,4.3614584]
[1725667587999,0.07134481,2231.2,2231.1,4.6752784]
[1725667588500,0.07134481,2231.2,2231.1,5.45033197]
[1725667589404,0.07134481,2231.2,2231.1,7.1842529]
[1725667589596,0.38515481,2231.2,2231.1,7.1842529]
[1725667590203,0.38515481,2231.2,2231.1,4.36268081]
[1725667590497,0.07134481,2231.2,2231.1,7.18425247]
[1725667590700,0.07134481,2231.2,2231.1,5.45033154]
[1725667590926,0.38515481,2231.2,2231.1,7.18360816]
[1725667592394,0.38515481,2231.2,2231.1,5.45031835]
[1725667592395,0.07134481,2231.2,2231.1,5.45031835]
[1725667592995,0.38515481,2231.2,2231.1,5.45031835]
[1725667594095,0.38515481,2231.2,2231.1,7.18450504]
[1725667595905,0.38515481,2231.2,2231.1,7.18459151]
[1725667597310,0.07134481,2231.2,2231.1,7.18459151]
[1725667597805,0.07134481,2231.2,2231.1,7.18427367]
[1725667598011,0.38515481,2231.2,2231.1,7.18429668]
[1725667598305,0.07134481,2231.2,2231.1,7.18429668]
[1725667598516,0.07134481,2231.2,2231.1,14.73052627]
[1725667598804,0.07134481,2231.2,2231.1,12.55685696]
[1725667599401,0.38515481,2231.2,2231.1,7.76143696]
[1725667599619,0.38515481,2231.2,2231.1,5.45040482]
[1725667600199,1.39689554,2231.2,2231.1,3.39774247]
[1725667600515,1.39689554,2231.2,2231.1,1.15513765]
[1725667600907,0.61237554,2231.2,2231.1,2.24264186]
[1725667601103,0.29856554,2231.2,2231.1,1.15505877]
[1725667601302,0.61237554,2231.2,2231.1,3.39778001]
[1725667601606,0.61237554,2231.2,2231.1,1.15505877]
[1725667602107,0.31382,2231.1,2231.0,1.73230627]
[1725667602438,0.31382,2231.1,2231.0,3.97566742]
[1725667602603,0.3772,2231.3,2231.0,3.97566742]
[1725667602871,0.31381,2231.2,2231.1,3.39796663]
[1725667603031,0.53471451,2231.2,2231.1,1.15530878]
[1725667603197,0.53471451,2231.2,2231.1,3.3980549]
[1725667603903,0.53471451,2231.2,2231.1,2.24274612]
[1725667604102,0.53471451,2231.2,2231.1,3.3983237]
[1725667604306,0.53471451,2231.2,2231.1,2.24274612]
[1725667605414,0.53471451,2231.2,2231.1,3.97575569]
[1725667606212,0.53471451,2231.2,2231.1,7.18355569]
[1725667606909,0.53471451,2231.2,2231.1,2.24274612]
[1725667607817,0.53471451,2231.2,2231.1,1.15581378]
[1725667608709,1.31923451,2231.2,2231.1,1.15581378]
[1725667610419,6.58535451,2231.2,2231.1,1.15581378]
[1725667610607,1.56926,2231.0,2230.5,1.15674957]
[1725667610804,0.78477,2230.5,2230.3,1.15674957]
[1725667611003,1.69272,2230.4,2230.3,1.15674957]
[1725667611409,0.31393,2230.3,2230.2,1.15674957]
[1725667611821,0.31393,2230.3,2230.2,3.40041164]
[1725667612213,0.31393,2230.3,2230.2,2.24356767]
[1725667612408,0.31393,2230.3,2230.2,1.15659714]
[1725667612614,0.31393,2230.3,2230.2,3.4001568]
[1725667612918,0.31393,2230.3,2230.2,1.15659714]
[1725667613722,0.31393,2230.3,2230.1,1.15659714]
[1725667613723,0.31395,2230.2,2230.1,1.15659714]
[1725667615220,0.3792,2230.3,2230.1,1.15659714]
[1725667615520,0.31395,2230.2,2230.0,4.73289714]
[1725667616126,0.31396,2230.1,2230.0,4.73289714]
[1725667616829,0.3792,2230.3,2230.0,4.73289714]
[1725667617026,0.31396,2230.2,2230.0,4.73289714]
[1725667617329,0.31396,2230.2,2230.0,3.5763]
[1725667618265,0.31396,2230.2,2230.0,0.3685]
[1725667619229,0.31396,2230.2,2230.0,1.52509714]
[1725667619820,0.31396,2230.1,2230.0,0.3685]
[1725667620021,0.78487,2230.2,2229.8,0.3998]
[1725667620220,0.31399,2229.9,2229.8,0.3998]
[1725667620417,0.31398,2230.0,2229.8,0.3998]
[1725667620982,0.9359,2229.9,2229.8,0.3998]
[1725667621317,1.24989,2229.9,2229.8,0.3998]
[1725667622022,0.314,2229.8,2229.6,1.15659714]
[1725667622225,0.314,2229.8,2229.5,5.06374714]
[1725667623122,1.2499,2229.9,2229.5,5.06374714]
[1725667623325,0.314,2229.8,2229.5,5.06374714]
[1725667625032,0.314,2229.8,2229.5,3.90715]
[1725667625331,0.31402,2229.7,2229.5,3.5931]
[1725667625828,0.31402,2229.7,2229.5,3.90714]
[1725667626044,0.31402,2229.7,2229.5,3.5931]
[1725667626232,0.31401,2229.8,2229.5,3.90714]
[1725667627052,0.31402,2229.7,2229.5,3.90714]
[1725667627405,0.31401,2229.8,2229.5,3.90714]
[1725667627629,0.31402,2229.7,2229.5,3.5931]
[1725667627935,0.31402,2229.7,2229.5,3.90714]
[1725667629429,0.31403,2229.6,2229.5,3.5931]
[1725667629828,0.31403,2229.7,2229.5,3.5931]
[1725667630638,0.31403,2229.6,2229.5,3.5931]
[1725667631823,0.9359,2229.9,2229.6,0.31403]
[1725667632151,1.2499,2229.9,2229.8,3.2078]
[1725667634532,0.9359,2229.9,2229.8,3.2078]
[1725667634936,1.24989,2229.9,2229.8,3.2078]
[1725667635436,0.9359,2229.9,2229.8,3.2078]
[1725667635740,1.24989,2229.9,2229.8,3.2078]
[1725667638736,2.5156,2229.9,2229.8,3.2078]
[1725667639429,2.82959,2229.9,2229.8,3.2078]
[1725667639754,2.82959,2229.9,2229.8,3.5218]
[1725667639755,2.5156,2229.9,2229.8,3.5218]
[1725667639945,0.8786,2229.9,2229.8,8.0066]
[1725667640236,0.31394,2230.3,2230.0,0.31397]
[1725667640430,0.31394,2230.3,2230.2,3.2078]
[1725667641538,0.39682303,2230.5,2230.1,0.376]
[1725667641733,0.31394,2230.3,2230.1,0.376]
[1725667643529,0.39682303,2230.5,2229.9,3.52178]
[1725667643530,0.31395,2230.2,2229.9,3.2078]
[1725667643933,0.31395,2230.2,2229.9,3.52179]
[1725667644141,0.31394,2230.3,2229.9,3.52179]
[1725667645136,0.39682303,2230.5,2229.9,4.67838714]
[1725667645137,0.31395,2230.2,2229.9,4.67838714]
[1725667645449,0.31394,2230.3,2229.9,4.67838714]
[1725667646039,0.31394,2230.3,2229.9,3.52179]
[1725667646235,0.31394,2230.3,2229.9,4.67838714]
[1725667646970,0.31395,2230.2,2229.9,4.67838714]
[1725667648168,1.15759,2230.8,2230.2,0.31395]
[1725667648169,0.3729,2230.8,2230.2,0.31395]
[1725667648349,0.62586491,2231.5,2231.0,0.31383]
[1725667648563,0.62586491,2231.5,2231.1,3.2078]
[1725667648564,0.5418175,2231.4,2231.1,3.2078]
[1725667648745,0.5418175,2231.4,2231.1,3.6075]
[1725667649042,0.31379,2231.4,2231.1,3.6075]
[1725667649645,0.92402168,2231.5,2231.1,3.92132]
[1725667650040,0.3795,2231.6,2231.1,4.76090714]
[1725667650341,3.2078,2231.8,2231.2,1.15340714]
[1725667650643,3.2078,2231.8,2231.5,0.31376]
[1725667650842,3.2078,2231.8,2231.2,1.15340714]
[1725667650843,3.52152,2231.8,2231.2,1.15340714]
[1725667651044,3.52152,2231.8,2231.3,0.31378]
[1725667651439,0.31374,2231.7,2231.2,1.46720714]
[1725667651648,0.22398675,2231.6,2231.2,1.15340714]
[1725667651846,0.67987,2231.5,2231.1,3.92132]
[1725667652232,0.3661,2231.5,2231.1,3.92132]
[1725667652553,0.67987,2231.5,2231.1,4.76090714]
[1725667652754,0.67987,2231.5,2231.1,5.07472714]
[1725667653251,0.3661,2231.5,2231.1,3.2078]
[1725667653443,0.3138,2231.3,2231.1,3.2078]
[1725667654643,0.31381,2231.2,2231.1,3.2078]
[1725667654842,0.31383,2231.1,2230.8,0.3866]
[1725667655051,0.31383,2231.1,2230.9,3.2078]
[1725667655435,0.31384,2231.0,2230.8,0.3866]
[1725667655546,0.31383,2231.1,2230.8,0.3866]
[1725667656348,0.31383,2231.0,2230.8,0.3866]
[1725667657152,0.31383,2231.0,2230.8,3.5944]
[1725667659347,0.31383,2231.1,2230.8,3.5944]
[1725667660160,0.68811,2231.2,2230.8,3.90826]
[1725667661253,0.68811,2231.2,2231.1,3.2078]
[1725667661648,5.16971,2231.2,2231.1,3.2078]
[1725667661950,4.4816,2231.2,2231.1,3.2078]
[1725667662263,0.0927,2231.4,2231.1,13.6894]
[1725667662556,0.34804,2231.7,2231.3,0.31379]
[1725667662746,0.34804,2231.7,2231.6,3.2078]
[1725667663016,0.34804,2231.7,2231.4,3.2078]
[1725667663952,0.34804,2231.7,2231.4,3.5974]
[1725667664558,0.0343,2231.7,2231.5,0.31376]
[1725667664757,0.0343,2231.7,2231.4,3.5974]
[1725667664758,0.0343,2231.7,2231.6,0.31375]
[1725667665167,0.0343,2231.7,2231.6,4.4808]
[1725667665478,0.0343,2231.7,2231.6,4.79455]
[1725667665858,0.0343,2231.7,2231.6,4.4808]
[1725667666863,0.0343,2231.7,2231.5,0.70535]
[1725667668465,0.0343,2231.7,2231.5,0.3916]
[1725667669482,0.0343,2231.7,2231.5,0.70536]
[1725667669556,0.0343,2231.7,2231.6,0.31375]
[1725667669755,0.0343,2231.7,2231.5,0.70535]
[1725667670558,0.0343,2231.7,2231.5,0.3916]
[1725667670759,0.0343,2231.7,2231.5,0.70536]
[1725667673165,1e-08,2231.7,2231.5,0.70535]
[1725667673362,1e-08,2231.7,2231.5,0.3916]
[1725667673759,0.31373,2231.8,2231.5,0.3916]
[1725667674081,0.31372,2231.9,2231.7,3.2078]
[1725667675371,0.53270461,2232.0,2231.7,3.2078]
[1725667676472,0.3137,2232.0,2231.7,3.2078]
[1725667676661,0.3889,2232.2,2231.7,3.2078]
[1725667676964,0.22026411,2232.4,2232.3,0.31365]
[1725667677276,0.22026411,2232.4,2232.3,3.52145]
[1725667677669,0.31361,2232.6,2232.3,3.52145]
[1725667677964,0.31362,2232.5,2232.3,3.2078]
[1725667678905,0.31364,2232.4,2232.1,0.3925]
[1725667678964,0.31368,2232.1,2232.0,3.2078]
[1725667679962,0.31368,2232.1,2231.8,0.69852]
[1725667680365,0.68177,2232.2,2231.8,0.69852]
[1725667680569,0.31368,2232.1,2231.8,0.69852]
[1725667680769,0.31368,2232.1,2231.8,0.3848]
[1725667680959,0.31368,2232.1,2231.8,0.69852]
[1725667681364,0.3681,2232.2,2231.8,0.3848]
[1725667681365,0.3137,2232.0,2231.8,0.3848]
[1725667681672,0.31371,2231.9,2231.8,0.3848]
[1725667681874,8.47202,2232.1,2231.5,0.3826]
[1725667682069,0.31374,2231.7,2231.5,0.3826]
[1725667682766,0.31375,2231.6,2231.5,0.3826]
[1725667683166,0.31371,2231.9,2231.5,4.8634]
[1725667683372,0.31371,2231.9,2231.7,3.2078]
[1725667683714,0.3137,2232.0,2231.7,3.52153]
[1725667683800,0.71304,2232.4,2231.7,3.2078]
[1725667683972,0.71371,2232.7,2232.1,3.2078]
[1725667684271,0.4001,2232.7,2232.4,3.2078]
[1725667684667,0.7137,2232.7,2232.4,3.2078]
[1725667685269,4.21163712,2232.9,2232.4,3.2078]
[1725667685270,3.52137,2232.9,2232.4,3.2078]
[1725667685466,3.52137,2232.9,2232.5,0.31362]
[1725667685671,3.43420976,2232.9,2232.4,3.2078]
[1725667685970,0.31361,2232.7,2232.4,3.2078]
[1725667686164,4.21815976,2232.9,2232.4,3.2078]
[1725667686384,0.71372,2232.6,2232.4,3.2078]
[1725667687778,0.31362,2232.5,2232.4,3.2078]
[1725667687978,0.71372,2232.6,2232.4,3.2078]
[1725667688372,0.71372,2232.6,2232.2,1.07536]
[1725667691173,0.31362,2232.5,2232.2,0.7617]
[1725667691376,0.71372,2232.6,2232.2,1.07536]
[1725667692078,0.3136,2232.7,2232.4,3.2078]
[1725667692679,0.31359,2232.8,2232.4,3.52143]
[1725667692869,0.3654,2233.0,2232.4,3.52143]
[1725667693078,0.31359,2232.8,2232.5,0.31362]
[1725667693269,0.31358,2232.9,2232.5,0.31362]
[1725667693470,0.67896,2233.0,2232.7,3.2078]
[1725667693940,0.67896,2233.0,2232.7,3.588]
[1725667694676,0.31355,2233.1,2232.7,3.9547]
[1725667694974,0.3659,2233.5,2233.0,3.2078]
[1725667695176,0.31349,2233.5,2233.1,0.31354]
[1725667695386,0.31349,2233.5,2233.3,3.2078]
[1725667695981,0.31348,2233.6,2233.3,3.52131]